bitfinex-derivatives/quotes_BTCF0:USTF0_20250330
["timestamp","ask_amount","ask_price","bid_price","bid_amount"]
[1743347686592,0.0324,82964.0,82963.0,0.4823694]
[1743347687598,0.1529679,82964.0,82963.0,0.4823694]
[1743347687987,0.1529679,82964.0,82963.0,0.1215694]
[1743347694694,0.1529679,82964.0,82963.0,0.1519694]
[1743347694899,0.1529679,82964.0,82963.0,0.1215694]
[1743347696203,0.1529679,82964.0,82963.0,0.1825694]
[1743347698908,0.1529679,82964.0,82963.0,0.39856506]
[1743347701908,0.1219679,82964.0,82963.0,0.33756506]
[1743347702209,0.2719679,82964.0,82963.0,0.21699566]
[1743347702729,0.39250283,82964.0,82963.0,0.09159566]
[1743347702899,0.40439919,82964.0,82963.0,0.09235566]
[1743347703204,0.43489919,82964.0,82963.0,0.09235566]
[1743347704804,0.1524679,82964.0,82963.0,0.09235566]
[1743347705004,0.2740679,82964.0,82963.0,0.12315566]
[1743347705397,0.2740679,82964.0,82963.0,0.09235566]
[1743347705598,0.2740679,82964.0,82963.0,0.00076]
[1743347705798,0.1205694,82963.0,82962.0,8e-05]
[1743347706004,0.4930094,82963.0,82962.0,8e-05]
[1743347706203,0.9440094,82963.0,82962.0,8e-05]
[1743347706809,1.8196094,82963.0,82962.0,8e-05]
[1743347711394,1.8196094,82963.0,82962.0,0.03028]
[1743347711900,1.8196094,82963.0,82962.0,0.06208]
[1743347712702,1.8086094,82963.0,82962.0,0.06208]
[1743347712901,1.9302094,82963.0,82962.0,0.06208]
[1743347713506,1.9302094,82963.0,82962.0,0.0740703]
[1743347714507,1.9302094,82963.0,82962.0,0.06208]
[1743347715617,1.9302094,82963.0,82962.0,0.07409338]
[1743347716106,1.8979094,82963.0,82962.0,0.07409338]
[1743347718012,1.4792094,82963.0,82962.0,0.07409338]
[1743347718810,1.1184094,82963.0,82962.0,0.07409338]
[1743347719320,0.9968094,82963.0,82962.0,0.07409338]
[1743347719808,1.1183694,82963.0,82962.0,0.19466418]
[1743347720010,0.9968094,82963.0,82962.0,0.19546418]
[1743347720310,1.1183694,82963.0,82962.0,0.19546418]
[1743347721415,0.87624,82963.0,82962.0,0.19546418]
[1743347722810,0.1212094,82963.0,82962.0,0.19546418]
[1743347723209,0.00064,82963.0,82962.0,0.21089226]
[1743347723410,0.12156,82967.0,82966.0,0.120565]
[1743347723709,0.0008,82967.0,82966.0,0.121365]
[1743347723912,0.242118,82971.0,82970.0,0.1205592]
[1743347724109,0.242838,82971.0,82970.0,0.1212792]
[1743347724517,0.242838,82971.0,82970.0,0.1527792]
[1743347724925,0.121278,82971.0,82970.0,0.1846792]
[1743347725216,0.00072,82971.0,82970.0,0.1846792]
[1743347727226,0.1212777,82971.0,82970.0,0.1846792]
[1743347728311,0.00072,82971.0,82970.0,0.1846792]
[1743347729213,0.1212777,82971.0,82970.0,0.1846792]
[1743347730628,0.12224,82971.0,82970.0,0.1846792]
[1743347733226,0.2427977,82971.0,82970.0,0.1846792]
[1743347734018,0.1212777,82971.0,82970.0,0.1846792]
[1743347735818,0.00072,82971.0,82970.0,0.1846792]
[1743347736621,0.0602677,82987.0,82979.0,0.1205461]
[1743347736622,0.13015529,82980.0,82979.0,0.1205461]
[1743347736827,0.2431861,82980.0,82979.0,0.2144661]
[1743347741327,0.2431461,82980.0,82979.0,0.2144661]
[1743347742035,0.1216661,82980.0,82979.0,0.2144661]
[1743347742338,0.2431461,82980.0,82979.0,0.2144661]
[1743347743142,0.1226,82980.0,82979.0,0.2144661]
[1743347743639,0.00112,82980.0,82979.0,0.2144661]
[1743347745540,0.1216647,82980.0,82979.0,0.2144661]
[1743347746742,0.00112,82980.0,82979.0,0.2144661]
[1743347746948,0.00112,82980.0,82979.0,0.22991275]
[1743347750755,0.00112,82980.0,82979.0,0.59071275]
[1743347752655,0.00112,82980.0,82979.0,0.59072623]
[1743347753055,0.00112,82980.0,82979.0,0.22992623]
[1743347753258,0.00112,82980.0,82979.0,0.59072623]
[1743347754146,0.00112,82980.0,82979.0,0.22992623]
[1743347754357,0.00112,82980.0,82979.0,0.59072623]
[1743347756058,0.00112,82980.0,82979.0,0.22992623]
[1743347756259,0.1216647,82980.0,82979.0,0.59072623]
[1743347756660,0.1216647,82980.0,82979.0,0.5752661]
[1743347758760,0.1216647,82980.0,82979.0,0.59082344]
[1743347759553,0.1216647,82980.0,82979.0,0.5752661]
[1743347759755,0.1216647,82980.0,82979.0,0.59091169]
[1743347760754,0.1209447,82980.0,82979.0,0.60599348]
[1743347761154,0.0004,82980.0,82979.0,0.60599348]
[1743347761961,0.1209447,82980.0,82979.0,0.60599348]
[1743347762860,0.1816695,82984.0,82983.0,0.1205403]
[1743347763058,1.0856182,83000.0,82994.0,0.1205243]
[1743347763059,0.1315256,82995.0,82994.0,0.1205243]
[1743347763255,0.2853656,82995.0,82994.0,0.1205243]
[1743347763457,0.2853656,82995.0,82994.0,0.13632609]
[1743347764067,0.2743656,82995.0,82994.0,0.13632609]
[1743347764964,0.28329136,82995.0,82994.0,0.13632609]
[1743347765360,0.16189136,82995.0,82994.0,0.13632609]
[1743347765560,0.28329136,82995.0,82994.0,0.13632609]
[1743347766060,0.28329136,82995.0,82994.0,0.14829098]
[1743347768558,0.10162736,82995.0,82994.0,0.14829098]
[1743347768766,0.2140616,82995.0,82994.0,0.14829098]
[1743347769368,0.00064,82995.0,82994.0,0.14829098]
[1743347769668,0.00064,82995.0,82994.0,0.16419299]
[1743347770570,0.00064,82995.0,82994.0,0.22779299]
[1743347770954,0.1211629,82995.0,82994.0,0.25366491]
[1743347771167,0.1211629,82995.0,82994.0,1.72779299]
[1743347771867,0.1211629,82995.0,82994.0,1.72783056]
[1743347773766,0.1211629,82995.0,82994.0,0.22783056]
[1743347773970,0.1538629,82995.0,82994.0,0.22783056]
[1743347774168,0.1538629,82995.0,82994.0,1.72783056]
[1743347774674,0.1538629,82995.0,82994.0,1.71189098]
[1743347775373,0.1538629,82995.0,82994.0,0.57269098]
[1743347775964,0.1538629,82995.0,82994.0,2.07269098]
[1743347776165,0.1538629,82995.0,82994.0,0.45216668]
[1743347776768,0.1538629,82995.0,82994.0,0.43708489]
[1743347777375,0.1538629,82995.0,82994.0,0.55760919]
[1743347778971,0.1211629,82995.0,82994.0,0.55760919]
[1743347781577,0.1211629,82995.0,82994.0,2.05760919]
[1743347782373,0.4819629,82995.0,82994.0,0.03142]
[1743347782565,0.1321629,82995.0,82994.0,0.0307]
[1743347782767,0.4929629,82995.0,82994.0,0.0307]
[1743347782967,0.0602635,82993.0,82990.0,0.01200314]
[1743347783162,0.1644272,82992.0,82991.0,0.0327]
[1743347783381,0.1651472,82992.0,82991.0,0.0335]
[1743347785772,0.1651472,82992.0,82991.0,0.0327]
[1743347786473,0.1651472,82992.0,82991.0,0.0335]
[1743347787577,0.1541472,82992.0,82991.0,0.1540287]
[1743347787762,0.2425672,82992.0,82991.0,0.1540287]
[1743347788276,0.2735672,82992.0,82991.0,0.1540287]
[1743347789169,0.2735672,82992.0,82991.0,0.0335]
[1743347789366,0.2845672,82992.0,82991.0,0.0335]
[1743347790071,0.2845672,82992.0,82991.0,0.0327]
[1743347791980,0.2845672,82992.0,82991.0,0.03346]
[1743347792177,0.2845672,82992.0,82991.0,0.0327]
[1743347793076,0.2845672,82992.0,82991.0,0.03342]
[1743347793276,0.2845672,82992.0,82991.0,0.0327]
[1743347793478,0.29644158,82992.0,82991.0,0.0327]
[1743347794072,0.29644158,82992.0,82990.0,8e-05]
[1743347794073,0.1205287,82991.0,82990.0,8e-05]
[1743347794371,0.1205287,82991.0,82976.0,0.1205496]
[1743347794372,0.1205476,82978.0,82976.0,0.1205496]
[1743347794683,0.6033876,82978.0,82977.0,0.40928353]
[1743347795076,0.36152,82978.0,82977.0,0.153369]
[1743347795278,0.1205412,82986.0,82985.0,0.180796]
[1743347795481,0.2425412,82986.0,82985.0,0.181516]
[1743347797779,0.2425412,82986.0,82985.0,0.214116]
[1743347798291,0.00072,82986.0,82985.0,0.214116]
[1743347798588,0.1205284,82992.0,82991.0,0.0602637]
[1743347798776,0.2425284,82992.0,82991.0,0.0609837]
[1743347798977,0.2425284,82992.0,82991.0,0.1538837]
[1743347800371,0.00072,82992.0,82991.0,0.1538837]
[1743347800574,0.12168,82996.0,82995.0,0.1205229]
[1743347800575,0.0004,82996.0,82995.0,0.1205229]
[1743347800778,1.1458756,83000.0,82999.0,0.1205171]
[1743347801088,1.1458756,83000.0,82999.0,0.4822371]
[1743347801089,1.1467956,83000.0,82999.0,0.4822371]
[1743347801283,1.02628,83000.0,82999.0,0.4831971]
[1743347801588,1.02628,83000.0,82999.0,0.4822771]
[1743347801793,1.02628,83000.0,82999.0,0.5446771]
[1743347802176,0.0636,83016.0,83011.0,0.1204996]
[1743347802384,0.12168,83012.0,83011.0,0.1217796]
[1743347802581,0.12288001,83012.0,83011.0,0.1837796]
[1743347802787,0.00160001,83012.0,83011.0,0.1837796]
[1743347802983,0.0004,83012.0,83011.0,0.1837796]
[1743347803288,0.00104,83012.0,83011.0,0.1837796]
[1743347803886,0.0004,83012.0,83011.0,0.2163796]
[1743347804687,0.00172,83012.0,83011.0,0.2163796]
[1743347804884,0.0004,83012.0,83011.0,0.23157274]
[1743347805273,0.1208982,83012.0,83011.0,0.23157274]
[1743347805477,0.1221782,83012.0,83011.0,0.23157274]
[1743347805982,0.00168,83012.0,83011.0,0.23157274]
[1743347806490,0.0004,83012.0,83011.0,0.24350397]
[1743347806790,0.00160001,83012.0,83011.0,0.24350397]
[1743347807288,0.0004,83012.0,83011.0,0.24350397]
[1743347807488,0.00160001,83012.0,83011.0,0.24350397]
[1743347808083,0.0004,83012.0,83011.0,0.24350397]
[1743347808388,0.00160001,83012.0,83011.0,0.24350397]
[1743347808885,0.0004,83012.0,83011.0,0.24350397]
[1743347809077,0.00160001,83012.0,83011.0,0.24350397]
[1743347811980,0.12209821,83012.0,83011.0,0.24350397]
[1743347813586,0.18339821,83012.0,83011.0,0.24350397]
[1743347814283,0.18339821,83012.0,83011.0,0.22831083]
[1743347814480,0.18339821,83012.0,83011.0,0.58911083]
[1743347815385,0.18339821,83012.0,83011.0,0.22831083]
[1743347816586,0.18339821,83012.0,83011.0,0.10781123]
[1743347817188,0.18339821,83012.0,83011.0,0.07661123]
[1743347817396,0.18339821,83012.0,83011.0,0.07533123]
[1743347817595,0.18339821,83012.0,83011.0,0.07653123]
[1743347818187,0.18339821,83012.0,83011.0,0.19703083]
[1743347818392,0.18339821,83012.0,83011.0,0.22813083]
[1743347818593,0.15339821,83012.0,83011.0,0.22813083]
[1743347818787,0.15339821,83012.0,83011.0,0.58893083]
[1743347819009,0.24329821,83012.0,83011.0,0.60400804]
[1743347821089,0.27529821,83012.0,83011.0,0.60400804]
[1743347821298,0.27529821,83012.0,83011.0,0.46843123]
[1743347822301,0.27529821,83012.0,83011.0,0.40653123]
[1743347822499,0.27529821,83012.0,83011.0,0.52703083]
[1743347823298,0.15409821,83012.0,83011.0,0.59233083]
[1743347823499,0.27529821,83012.0,83011.0,0.59233083]
[1743347824907,0.27529821,83012.0,83011.0,0.60750788]
[1743347825608,0.27529821,83012.0,83011.0,0.24670788]
[1743347827914,0.12209821,83012.0,83011.0,0.24670788]
[1743347828610,0.12209821,83012.0,83011.0,1.74670788]
[1743347828905,0.1208982,83012.0,83011.0,1.74670788]
[1743347829105,0.1208982,83012.0,83011.0,0.24670788]
[1743347829308,0.1524382,83012.0,83011.0,0.24670788]
[1743347830416,0.1215382,83012.0,83011.0,0.62350497]
[1743347830911,0.1215382,83012.0,83011.0,0.62356301]
[1743347831113,0.1208982,83012.0,83011.0,2.12356301]
[1743347831906,0.0004,83012.0,83011.0,2.12356604]
[1743347833716,0.12116,83018.0,83017.0,0.1204909]
[1743347833915,0.13036466,83022.0,83021.0,0.1204851]
[1743347834216,0.13156467,83022.0,83021.0,0.1204851]
[1743347834419,0.13092467,83022.0,83021.0,0.1204851]
[1743347834613,0.13092467,83022.0,83021.0,0.13566215]
[1743347834811,0.13092467,83022.0,83021.0,0.20170215]
[1743347835208,0.19392467,83022.0,83021.0,0.20046215]
[1743347835409,0.19392467,83022.0,83021.0,0.20166215]
[1743347836818,0.19392467,83022.0,83021.0,0.21768896]
[1743347837016,0.15308501,83022.0,83021.0,0.21768896]
[1743347837320,0.12168501,83022.0,83021.0,0.21768896]
[1743347837510,0.00120001,83022.0,83021.0,0.57857491]
[1743347837717,0.242035,83028.0,83027.0,0.1204764]
[1743347837914,0.243315,83028.0,83027.0,0.13786733]
[1743347838419,0.243315,83028.0,83027.0,0.13693345]
[1743347838609,0.243315,83028.0,83027.0,0.20083345]
[1743347839409,0.276615,83028.0,83027.0,0.20083345]
[1743347840614,0.243315,83028.0,83027.0,0.20083345]
[1743347842514,0.122155,83028.0,83027.0,0.20083345]
[1743347842820,0.242035,83028.0,83027.0,0.20083345]
[1743347843021,0.243315,83028.0,83027.0,0.20083345]
[1743347843816,0.243315,83028.0,83027.0,0.24230733]
[1743347844413,0.0004,83028.0,83027.0,0.24230733]
[1743347844618,0.00160001,83028.0,83027.0,0.24230733]
[1743347845220,0.12207501,83028.0,83027.0,0.24230733]
[1743347846219,0.00160001,83028.0,83027.0,0.24230733]
[1743347846421,0.120875,83028.0,83027.0,0.24230733]
[1743347846724,0.122195,83028.0,83027.0,0.24230733]
[1743347847514,0.00172,83028.0,83027.0,0.24230733]
[1743347847912,0.0004,83028.0,83027.0,0.24230733]
[1743347848919,0.120875,83028.0,83027.0,0.24230733]
[1743347849125,0.12207501,83028.0,83027.0,0.24230733]
[1743347851424,0.12207501,83028.0,83027.0,0.2258465]
[1743347852323,0.12207501,83028.0,83027.0,0.20083345]
[1743347853132,0.3608,83037.0,83036.0,0.1204634]
[1743347853323,0.36144,83037.0,83036.0,0.13680119]
[1743347853625,0.4819019,83037.0,83036.0,0.13836119]
[1743347853825,0.4819019,83037.0,83036.0,1.63836119]
[1743347854027,0.1211019,83037.0,83036.0,1.71787824]
[1743347854227,0.00064,83037.0,83036.0,1.71631824]
[1743347854425,0.00064,83037.0,83036.0,2.07711824]
[1743347854823,0.00064,83037.0,83036.0,2.08949376]
[1743347855022,0.87504,83039.0,83038.0,0.1204605]
[1743347855228,0.87504,83039.0,83038.0,0.13855829]
[1743347855533,0.87504,83039.0,83038.0,0.13739755]
[1743347855933,0.87504,83039.0,83038.0,0.15357729]
[1743347856152,0.0004,83044.0,83043.0,0.1204532]
[1743347856358,0.1208518,83044.0,83043.0,0.49946016]
[1743347856564,0.1208518,83044.0,83043.0,0.56016016]
[1743347857046,0.2415567,83055.0,83046.0,0.0602239]
[1743347857252,0.4901623,83053.0,83052.0,0.1204402]
[1743347857456,0.4812387,83053.0,83052.0,0.13856716]
[1743347857955,0.3608,83053.0,83052.0,0.15374421]
[1743347858158,0.00925806,83063.0,83059.0,0.12043]
[1743347858345,0.0602119,83064.0,83059.0,0.13859696]
[1743347858543,0.0602126,83063.0,83059.0,0.15083682]
[1743347858750,0.4816286,83060.0,83059.0,0.15083682]
[1743347859231,0.4816286,83060.0,83059.0,0.18006629]
[1743347859436,0.4816286,83060.0,83059.0,0.25478684]
[1743347859935,0.4816286,83060.0,83059.0,1.75478684]
[1743347862032,0.4816286,83060.0,83059.0,0.25478684]
[1743347862328,0.4816286,83060.0,83059.0,0.1920623]
[1743347863326,0.5143286,83060.0,83059.0,0.1920623]
[1743347863739,0.5143286,83060.0,83059.0,0.17569534]
[1743347865234,0.1208286,83060.0,83059.0,0.17569534]
[1743347866635,0.1208286,83060.0,83059.0,0.19319298]
[1743347867536,0.0004,83060.0,83059.0,0.19319298]
[1743347869144,0.1208286,83060.0,83059.0,0.19319298]
[1743347869340,0.1208286,83060.0,83059.0,0.22599298]
[1743347869544,0.1208286,83060.0,83059.0,0.25649298]
[1743347869947,0.1833286,83060.0,83059.0,0.25649298]
[1743347871445,0.0327,83060.0,83059.0,0.25649298]
[1743347871941,0.0004,83060.0,83059.0,0.25649298]
[1743347872147,0.0004,83060.0,83059.0,0.28514276]
[1743347873250,0.0004,83060.0,83059.0,0.25649298]
[1743347873951,0.1841286,83060.0,83059.0,0.25649298]
[1743347875256,0.1841286,83060.0,83059.0,0.06052312]
[1743347875544,0.1841286,83060.0,83059.0,0.16345548]
[1743347875853,0.1841286,83060.0,83059.0,0.2443178]
[1743347877551,0.1841286,83060.0,83059.0,0.0603878]
[1743347877753,0.1841286,83060.0,83059.0,0.0585878]
[1743347878050,0.1841286,83060.0,83059.0,0.04122548]
[1743347878646,0.1204402,83052.0,83051.0,0.00018064]
[1743347878838,0.2503202,83052.0,83051.0,0.01948302]
[1743347879252,0.2503202,83052.0,83051.0,0.00202064]
[1743347879451,0.3123202,83052.0,83051.0,0.00202064]
[1743347880648,0.1824402,83052.0,83051.0,0.12246224]
[1743347880863,0.3124002,83052.0,83051.0,0.12246224]
[1743347881256,0.3124002,83052.0,83051.0,0.00202064]
[1743347881661,0.3124002,83052.0,83051.0,0.06622064]
[1743347881855,0.3124002,83052.0,83051.0,0.18666224]
[1743347882267,0.2809002,83052.0,83051.0,0.18666224]
[1743347882463,0.1204402,83052.0,83051.0,0.20338547]
[1743347882658,0.2505202,83052.0,83051.0,0.20338547]
[1743347883266,0.2505202,83052.0,83051.0,0.08294387]
[1743347883470,0.3113202,83052.0,83051.0,0.08294387]
[1743347884561,0.3113202,83052.0,83051.0,0.20338547]
[1743347885155,0.2505202,83052.0,83051.0,0.20338547]
[1743347885558,0.2505202,83052.0,83051.0,1.70338547]
[1743347886368,0.3608,83058.0,83051.0,1.70338547]
[1743347886369,0.0602131,83062.0,83059.0,0.12043]
[1743347886668,0.1208286,83060.0,83059.0,0.13715323]
[1743347886871,0.1208286,83060.0,83059.0,0.13715704]
[1743347887069,0.1208286,83060.0,83059.0,0.13891704]
[1743347887273,0.1208286,83060.0,83059.0,0.20251704]
[1743347888662,0.1208286,83060.0,83059.0,0.20231558]
[1743347889863,0.0004,83060.0,83059.0,0.20231558]
[1743347890570,0.0004,83060.0,83059.0,0.20254411]
[1743347890972,0.1208286,83060.0,83059.0,0.20254411]
[1743347891473,0.1208286,83060.0,83059.0,0.09263088]
[1743347891673,0.1208286,83060.0,83059.0,0.05953088]
[1743347891859,0.1836286,83060.0,83059.0,0.05953088]
[1743347892063,0.6023286,83060.0,83059.0,0.04101677]
[1743347892268,0.1204344,83056.0,83055.0,0.28801453]
[1743347892575,0.4812344,83056.0,83055.0,0.00176]
[1743347892778,0.1204402,83052.0,83050.0,0.1525423]
[1743347893074,0.2506402,83052.0,83051.0,0.03408064]
[1743347893666,0.2817402,83052.0,83051.0,0.03408064]
[1743347894173,0.6425402,83052.0,83051.0,0.03408064]
[1743347894376,0.6425402,83052.0,83051.0,0.15452224]
[1743347894671,0.2817402,83052.0,83051.0,0.18462224]
[1743347894867,0.1204402,83052.0,83051.0,0.18462224]
[1743347895070,0.2505202,83052.0,83051.0,0.18462224]
[1743347895872,0.2505202,83052.0,83051.0,1.68462224]
[1743347896575,0.2505202,83052.0,83051.0,1.7008163]
[1743347896970,0.2505202,83052.0,83051.0,1.68462224]
[1743347897171,0.2505202,83052.0,83051.0,1.70083157]
[1743347897967,0.13008,83052.0,83051.0,1.70083157]
[1743347898874,0.13008,83052.0,83051.0,1.72719469]
[1743347899078,0.13008,83052.0,83051.0,1.72745989]
[1743347899567,0.13008,83052.0,83051.0,2.08825989]
[1743347901679,0.1204364,83055.0,83054.0,0.1204373]
[1743347901875,0.1204364,83055.0,83054.0,0.16327495]
[1743347902069,0.1204364,83055.0,83054.0,0.16503495]
[1743347902581,0.1204325,83058.0,83057.0,0.0602158]
[1743347902779,0.1204325,83058.0,83057.0,0.14345182]
[1743347905078,0.2508686,83060.0,83059.0,0.12043]
[1743347905276,0.2508686,83060.0,83059.0,0.13866602]
[1743347906175,0.2820686,83060.0,83059.0,0.13866602]
[1743347906375,0.3151686,83060.0,83059.0,0.13866602]
[1743347906974,0.2820686,83060.0,83059.0,0.13866602]
[1743347907385,0.2508686,83060.0,83059.0,0.13866602]
[1743347908374,0.3167686,83060.0,83059.0,0.13866602]
[1743347908776,0.3167686,83060.0,83059.0,0.20266602]
[1743347909388,0.2836686,83060.0,83059.0,0.20266602]
[1743347909786,0.2836686,83060.0,83059.0,0.20090602]
[1743347910471,0.3149686,83060.0,83059.0,0.20090602]
[1743347910669,0.3149686,83060.0,83059.0,0.21600685]
[1743347913185,0.3149686,83060.0,83059.0,0.09557685]
[1743347913374,0.3149686,83060.0,83043.0,8e-05]
[1743347913375,0.75359562,83060.0,83043.0,8e-05]
[1743347913687,0.1204518,83044.0,83043.0,0.00176]
[1743347913883,0.2519318,83044.0,83043.0,0.1547132]
[1743347914185,0.2519318,83044.0,83043.0,0.1869132]
[1743347914578,0.2837318,83044.0,83043.0,0.1869132]
[1743347919584,0.2837318,83044.0,83043.0,0.00176]
[1743347919792,0.6445318,83044.0,83043.0,0.00176]
[1743347919993,0.1204547,83042.0,83041.0,0.0306]
[1743347920304,0.1204547,83042.0,83041.0,0.03248]
[1743347920494,0.1204547,83042.0,83041.0,0.1529361]
[1743347920693,0.1526547,83042.0,83041.0,0.1529361]
[1743347921096,0.060225,83046.0,83043.0,0.1806763]
[1743347921286,0.2521703,83045.0,83044.0,0.0611]
[1743347921491,0.2526103,83045.0,83044.0,0.06298]
[1743347921688,0.3160103,83045.0,83044.0,0.06298]
[1743347921990,0.3160103,83045.0,83044.0,0.1834303]
[1743347922192,0.2526103,83045.0,83044.0,0.1834303]
[1743347922701,0.4187,83047.0,83046.0,0.1204489]
[1743347922883,0.4187,83047.0,83046.0,0.4830089]
[1743347923090,0.0001799,83050.0,83049.0,0.1204445]
[1743347923286,0.0001799,83050.0,83049.0,1.64896115]
[1743347923481,0.0001799,83050.0,83049.0,1.68307539]
[1743347923683,0.0001799,83050.0,83049.0,1.74467539]
[1743347924291,0.0001799,83050.0,83049.0,1.71056115]
[1743347924794,0.0001799,83050.0,83049.0,1.71083182]
[1743347925291,0.0001799,83050.0,83049.0,1.72773681]
[1743347925491,0.0001799,83050.0,83049.0,1.74314142]
[1743347926396,0.0001799,83050.0,83049.0,1.777164]
[1743347928210,0.0001799,83050.0,83049.0,1.74314142]
[1743347931206,0.120623,83050.0,83049.0,1.74314142]
[1743347931399,0.120623,83050.0,83049.0,0.24314142]
[1743347932304,0.252543,83050.0,83049.0,0.2161141]
[1743347933707,0.252543,83050.0,83049.0,0.24260631]
[1743347933903,0.252543,83050.0,83049.0,0.2161141]
[1743347934500,0.252543,83050.0,83049.0,0.0956696]
[1743347934798,0.252543,83050.0,83049.0,0.09532679]
[1743347935310,0.252543,83050.0,83049.0,0.07876461]
[1743347935705,0.252543,83050.0,83049.0,0.19920911]
[1743347936601,0.252543,83050.0,83049.0,0.07876461]
[1743347936797,0.252543,83050.0,83049.0,0.04816461]
[1743347938306,0.252543,83050.0,83049.0,0.08116461]
[1743347938805,0.252543,83050.0,83049.0,0.20160911]
[1743347939414,0.252543,83050.0,83049.0,0.08116461]
[1743347939616,0.252543,83050.0,83049.0,0.06576]
[1743347941110,0.252543,83050.0,83049.0,0.1862045]
[1743347941309,0.120623,83050.0,83049.0,0.20130745]
[1743347941613,0.120623,83050.0,83049.0,0.24419469]
[1743347941812,0.120623,83050.0,83049.0,0.21780323]
[1743347942013,0.120623,83050.0,83049.0,1.71780361]
[1743347942410,0.120623,83050.0,83049.0,1.59735911]
[1743347942709,0.120623,83050.0,83049.0,0.09735911]
[1743347942906,0.19433684,83050.0,83049.0,0.03276]
[1743347943301,0.182523,83050.0,83049.0,0.00176]
[1743347945810,0.1204445,83049.0,83048.0,0.0308]
[1743347946015,0.1510445,83049.0,83048.0,0.03256]
[1743347946212,0.2155445,83049.0,83048.0,0.03256]
[1743347946411,0.2155445,83049.0,83048.0,0.0308]
[1743347947712,0.2155445,83049.0,83048.0,0.03264]
[1743347949522,0.1204489,83046.0,83045.0,8e-05]
[1743347949819,0.1204532,83043.0,83041.0,0.21523648]
[1743347950113,0.5123547,83042.0,83041.0,0.24933648]
[1743347950329,0.5438347,83042.0,83041.0,0.24933648]
[1743347951521,0.6747947,83042.0,83041.0,0.24933648]
[1743347951818,0.6747947,83042.0,83041.0,0.25033648]
[1743347952523,0.6747947,83042.0,83041.0,0.21743648]
[1743347953111,0.5438347,83042.0,83041.0,0.0022]
[1743347953316,0.2835147,83042.0,83041.0,0.001]
[1743347953512,0.2835147,83042.0,83041.0,0.0022]
[1743347954016,0.2835147,83042.0,83041.0,0.001]
[1743347954231,0.2835147,83042.0,83041.0,0.0022]
[1743347955815,0.2835147,83042.0,83041.0,0.001]
[1743347957626,0.2835147,83042.0,83041.0,0.0022]
[1743347958618,0.1217347,83042.0,83041.0,0.0022]
[1743347958925,0.2521347,83042.0,83041.0,0.0022]
[1743347960229,0.2521347,83042.0,83041.0,0.001]
[1743347961229,0.2521347,83042.0,83041.0,0.0316]
[1743347961818,0.2823347,83042.0,83041.0,0.0316]
[1743347967132,0.1519347,83042.0,83041.0,0.0316]
[1743347967333,0.2813747,83042.0,83041.0,0.03292]
[1743347967630,0.2813747,83042.0,83041.0,0.0316]
[1743347968632,0.2813747,83042.0,83041.0,0.0328]
[1743347968832,0.2511747,83042.0,83041.0,0.0328]
[1743347969030,0.2511747,83042.0,83041.0,0.0316]
[1743347969233,0.2511747,83042.0,83041.0,0.03284]
[1743347969726,0.2511747,83042.0,83041.0,0.0316]
[1743347969930,0.1217347,83042.0,83041.0,0.0316]
[1743347970235,0.2507747,83042.0,83041.0,0.03288]
[1743347972527,0.1217347,83042.0,83041.0,0.03288]
[1743347972723,0.2504547,83042.0,83041.0,0.03288]
[1743347973035,0.2506547,83042.0,83041.0,0.1695789]
[1743347973539,0.2506547,83042.0,83041.0,0.2027789]
[1743347973833,0.2506547,83042.0,83041.0,0.22876351]
[1743347975030,0.2506547,83042.0,83041.0,0.24401189]
[1743347976032,0.2506547,83042.0,83041.0,0.12355579]
[1743347976536,0.2506547,83042.0,83041.0,0.24401189]
[1743347976926,0.2506547,83042.0,83041.0,0.21802728]
[1743347977124,0.2506547,83042.0,83041.0,0.09757118]
[1743347978024,0.3161547,83042.0,83041.0,0.09757118]
[1743347978226,0.3161547,83042.0,83041.0,0.08132838]
[1743347979740,0.2506547,83042.0,83041.0,0.08132838]
[1743347981329,0.2506547,83042.0,83041.0,0.21822656]
[1743347984132,0.2506547,83042.0,83041.0,0.2182727]
[1743347985842,0.2516947,83042.0,83041.0,0.2182727]
[1743347990043,0.2516947,83042.0,83041.0,0.21809083]
[1743347990942,0.2516947,83042.0,83041.0,0.50512084]
[1743347992436,0.2516947,83042.0,83041.0,0.38466474]
[1743347994242,0.1217347,83042.0,83041.0,0.50512084]
[1743347994443,0.2496147,83042.0,83041.0,0.50512084]
[1743347994644,0.25081471,83042.0,83041.0,0.50512084]
[1743347999353,0.25081471,83042.0,83041.0,0.21809083]
[1743348000041,0.25081471,83042.0,83041.0,0.20284245]
[1743348000255,0.25081471,83042.0,83041.0,0.21829597]
[1743348000456,0.25081471,83042.0,83041.0,0.09783987]
[1743348000650,0.25081471,83042.0,83041.0,0.21829597]
[1743348000856,0.31431471,83042.0,83041.0,0.21829597]
[1743348001545,0.31431471,83042.0,83041.0,0.21813485]
[1743348002154,0.28201471,83042.0,83041.0,1.71813485]
[1743348003256,0.28201471,83042.0,83041.0,1.71822673]
[1743348004047,0.28201471,83042.0,83041.0,1.59777063]
[1743348004448,0.31381471,83042.0,83041.0,1.71822673]
[1743348004648,0.28201471,83042.0,83041.0,1.71822673]
[1743348005054,0.2808147,83042.0,83041.0,1.71822673]
[1743348007061,0.2808147,83042.0,83041.0,1.70198962]
[1743348008760,0.2808147,83042.0,83041.0,1.71820041]
[1743348009156,0.2808147,83042.0,83041.0,0.21820041]
[1743348009359,0.2808147,83042.0,83041.0,0.24449868]
[1743348009561,0.28205471,83042.0,83041.0,0.24449868]
[1743348009957,0.2808147,83042.0,83041.0,0.24449868]
[1743348010953,0.2808147,83042.0,83041.0,0.26991148]
[1743348012552,0.2808147,83042.0,83041.0,0.22740242]
[1743348012754,0.2808147,83042.0,83041.0,0.27175245]
[1743348013569,0.2808147,83042.0,83041.0,0.81366789]
[1743348014258,0.2496147,83042.0,83041.0,0.81366789]
[1743348014656,0.0602176,83056.0,83046.0,0.0602243]
[1743348014864,0.0004,83060.0,83049.0,0.1204445]
[1743348014865,0.00137991,83050.0,83049.0,0.1204445]
[1743348015160,0.00137991,83050.0,83049.0,0.20686085]
[1743348015364,0.00137991,83050.0,83049.0,1.70686085]
[1743348016364,0.00137991,83050.0,83049.0,2.24877629]
[1743348016868,0.87476,83054.0,83053.0,0.1204387]
[1743348017167,0.87636,83054.0,83053.0,0.52718873]
[1743348017363,0.87636,83054.0,83053.0,0.56805505]
[1743348017890,0.1220373,83054.0,83053.0,0.44761635]
[1743348018168,0.1204373,83054.0,83053.0,0.56805505]
[1743348018358,0.1204373,83054.0,83053.0,0.54076272]
[1743348018972,0.1204373,83054.0,83053.0,0.57156272]
[1743348019970,0.1204373,83054.0,83053.0,0.55450502]
[1743348020168,0.1204373,83054.0,83053.0,0.57105047]
[1743348020564,0.1204307,83059.0,83058.0,0.12043]
[1743348020768,0.2495507,83059.0,83058.0,0.13865545]
[1743348021064,0.00168,83059.0,83058.0,0.23225545]
[1743348021267,0.00168,83059.0,83058.0,0.28521612]